bitfinex-derivatives/quotes_SOLF0:USTF0_20241212
["timestamp","ask_amount","ask_price","bid_price","bid_amount"]
[1734012526148,2.94,230.81,230.79,6.91717956]
[1734012526550,2.8271,230.86,230.79,6.91717956]
[1734012526754,2.8271,230.86,230.81,6.91717956]
[1734012526956,2.1656,230.82,230.81,6.91717956]
[1734012527152,2.1656,230.82,230.77,2.166]
[1734012527452,2.8271,230.86,230.76,10.81363217]
[1734012528054,2.1656,230.82,230.78,2.166]
[1734012528659,2.94,230.87,230.79,10.81363217]
[1734012528861,13.57373217,230.93,230.79,10.81363217]
[1734012529052,2.94,230.92,230.79,10.81363217]
[1734012530254,2.94,230.92,230.82,2.1656]
[1734012530562,2.94,230.92,230.82,10.81363217]
[1734012530755,2.1651,230.88,230.83,2.1654]
[1734012531658,2.1651,230.87,230.83,2.1654]
[1734012532055,2.94,230.92,230.82,10.81363217]
[1734012532354,13.63813217,230.99,230.85,10.81363217]
[1734012532560,2.94,230.98,230.85,10.81363217]
[1734012532751,10.81363217,230.99,230.85,10.81363217]
[1734012532955,2.94,230.98,230.87,2.1651]
[1734012533557,2.1647,230.92,230.87,2.1651]
[1734012534062,2.1647,230.92,230.85,10.81363217]
[1734012534863,2.94,230.97,230.89,2.1649]
[1734012535065,2.94,230.97,230.85,10.81363217]
[1734012536166,2.1646,230.93,230.88,2.165]
[1734012537061,2.94,230.97,230.88,2.165]
[1734012537260,2.1647,230.92,230.88,2.165]
[1734012538162,2.94,230.97,230.86,2.1652]
[1734012538464,10.81363217,230.96,230.85,10.81363217]
[1734012538667,2.1646,230.93,230.85,10.81363217]
[1734012538867,10.81363217,230.96,230.85,10.81363217]
[1734012539067,10.81363217,230.96,230.84,2.1654]
[1734012539564,2.1651,230.88,230.84,2.1654]
[1734012540366,2.1652,230.87,230.82,12.97913217]
[1734012540563,2.1652,230.87,230.82,10.81363217]
[1734012541269,2.165,230.89,230.85,10.81363217]
[1734012541569,2.94,230.97,230.85,10.81363217]
[1734012542364,2.94,230.97,230.86,2.1652]
[1734012542768,10.81363217,230.99,230.86,2.1652]
[1734012542961,2.94,230.98,230.86,2.1652]
[1734012543670,10.81363217,230.99,230.86,2.1652]
[1734012543870,2.94,230.98,230.86,2.1652]
[1734012544080,2.1647,230.92,230.88,2.165]
[1734012544369,2.94,230.98,230.85,10.81363217]
[1734012544975,2.1647,230.92,230.87,2.1651]
[1734012545569,2.1647,230.92,230.85,10.81363217]
[1734012545776,2.1647,230.92,230.88,2.165]
[1734012547264,2.1647,230.92,230.9,6.91507021]
[1734012548270,6.91507021,231.03,230.9,6.91507021]
[1734012548471,2.92,231.04,230.98,6.91507021]
[1734012548677,6.91507021,231.05,231.0,6.91507021]
[1734012548976,0.72214717,231.04,231.02,6.91507021]
[1734012549166,2.92,231.07,231.02,6.91507021]
[1734012549370,2.1635,231.05,231.02,6.91507021]
[1734012549672,2.92,231.07,231.02,6.91507021]
[1734012549874,2.1634,231.05,231.02,6.91507021]
[1734012550874,2.1634,231.06,231.02,6.91507021]
[1734012551172,2.92,231.09,231.0,10.79175439]
[1734012551581,2.1633,231.07,231.02,2.1636]
[1734012551875,2.92,231.09,231.0,10.79175439]
[1734012552380,2.1633,231.07,231.0,10.79175439]
[1734012552765,2.1634,231.06,231.02,2.1637]
[1734012552970,2.1634,231.06,231.0,10.79175439]
[1734012553171,2.92,231.09,231.02,2.1636]
[1734012553572,2.1633,231.07,231.0,10.79175439]
[1734012553873,2.92,231.09,231.04,2.1635]
[1734012554576,2.163,231.1,231.04,2.1635]
[1734012554875,2.92,231.12,231.04,2.1635]
[1734012555074,2.92,231.12,231.0,10.79175439]
[1734012555277,2.1632,231.08,231.0,10.79175439]
[1734012555476,2.1632,231.08,231.04,2.1635]
[1734012555679,2.92,231.11,231.03,10.79175439]
[1734012555680,2.163,231.11,231.03,10.79175439]
[1734012555974,2.92,231.13,231.03,10.79175439]
[1734012556169,2.92,231.13,231.06,2.1633]
[1734012556374,2.163,231.11,231.06,2.1633]
[1734012556569,2.92,231.13,231.06,2.1633]
[1734012557069,2.7086,231.16,231.06,2.1633]
[1734012557271,3.64244485,231.15,231.06,2.1633]
[1734012557472,2.92,231.15,231.06,2.1633]
[1734012557777,2.1632,231.08,231.02,2.6902]
[1734012557975,10.79175439,231.14,231.02,2.6902]
[1734012558178,2.92,231.15,231.01,2.7055]
[1734012558179,10.79175439,231.11,231.01,2.7055]
[1734012558380,2.1635,231.04,231.01,2.7055]
[1734012558578,2.92,231.09,231.01,2.7055]
[1734012558881,2.1636,231.04,231.01,2.7055]
[1734012560379,2.92,231.09,230.99,10.79175439]
[1734012560380,2.1637,231.02,230.99,10.79175439]
[1734012560976,2.92,231.09,230.99,10.79175439]
[1734012561578,2.1637,231.03,230.99,12.95575439]
[1734012561778,2.1637,231.03,230.99,10.79175439]
[1734012562084,2.1638,231.02,230.99,10.79175439]
[1734012562485,2.92,231.09,230.99,10.79175439]
[1734012562987,2.92,231.08,230.99,10.79175439]
[1734012563681,2.1637,231.03,230.99,12.95575439]
[1734012563877,13.71175439,231.08,230.96,10.79175439]
[1734012564279,2.164,231.0,230.95,4.8304]
[1734012564880,2.92,231.05,230.95,2.6661]
[1734012567988,2.164,230.99,230.95,4.8305]
[1734012568989,2.1637,231.02,230.97,2.1642]
[1734012569189,2.92,231.06,230.96,10.79175439]
[1734012569684,13.52625439,231.14,230.99,10.79175439]
[1734012569886,3.64307928,231.13,230.99,10.79175439]
[1734012570085,10.79175439,231.14,231.02,10.79175439]
[1734012570388,10.79175439,231.14,231.04,2.1635]
[1734012570389,2.1632,231.08,231.04,2.1635]
[1734012571880,2.1632,231.08,231.03,2.1636]
[1734012572281,2.1632,231.08,231.02,10.79175439]
[1734012572590,2.1633,231.07,231.03,2.1636]
[1734012572788,2.92,231.12,231.02,10.79175439]
[1734012573187,2.1632,231.08,231.07,6.90459593]
[1734012573692,2.92,231.12,231.07,6.90459593]
[1734012574285,6.90459593,231.14,231.07,6.90459593]
[1734012574489,9.61319593,231.16,231.09,6.90459593]
[1734012574681,0.72354276,231.15,231.09,6.90459593]
[1734012574886,9.82459593,231.16,231.09,6.90459593]
[1734012575087,2.1629,231.12,231.09,6.90459593]
[1734012575286,9.82459593,231.16,231.09,6.90459593]
[1734012576090,6.90459593,231.16,231.09,6.90459593]
[1734012576689,2.1629,231.12,231.09,6.90459593]
[1734012576897,6.90459593,231.16,231.09,6.90459593]
[1734012577687,2.163,231.11,231.09,6.90459593]
[1734012578889,2.163,231.1,231.09,6.90459593]
[1734012582297,5.28227993,231.19,231.09,6.90459593]
[1734012582499,5.28227993,231.19,231.07,5.17655722]
[1734012582500,0.72361718,231.18,231.14,6.90459593]
[1734012582798,93.60998011,231.21,231.14,6.90459593]
[1734012582799,2.92,231.19,231.14,6.90459593]
[1734012583000,93.60998011,231.21,231.14,6.90459593]
[1734012583001,2.92,231.2,231.14,6.90459593]
[1734012583596,2.1626,231.15,231.14,6.90459593]
[1734012585401,6.90459593,231.17,231.08,2.7027]
[1734012585704,6.90459593,231.17,231.1,6.90459593]
[1734012586199,2.1629,231.11,231.1,6.90459593]
[1734012586892,2.92,231.2,231.1,6.90459593]
[1734012587094,7.62807708,231.19,231.13,6.90459593]
[1734012587299,6.90459593,231.19,231.13,6.90459593]
[1734012587599,2.92,231.2,231.1,6.90459593]
[1734012587600,6.90459593,231.17,231.1,6.90459593]
[1734012587998,2.1627,231.13,231.08,6.90459593]
[1734012588197,6.90459593,231.15,231.08,6.90459593]
[1734012588999,2.1631,231.09,231.08,6.90459593]
[1734012591103,2.9,231.14,231.08,6.90459593]
[1734012591400,2.9,231.14,231.11,6.90459593]
[1734012591605,2.1624,231.17,231.11,6.90459593]
[1734012591906,9.80459593,231.19,231.13,6.90459593]
[1734012592203,2.1626,231.15,231.13,6.90459593]
[1734012592404,9.80459593,231.19,231.13,6.90459593]
[1734012593599,2.1626,231.15,231.13,6.90459593]
[1734012593905,86.70538418,231.21,231.15,6.90459593]
[1734012593906,2.9,231.21,231.15,6.90459593]
[1734012594101,2.162,231.2,231.18,6.90459593]
[1734012594304,2.9,231.23,231.18,6.90459593]
[1734012594698,2.1621,231.19,231.18,6.90459593]
[1734012594902,6.90459593,231.24,231.18,6.90459593]
[1734012595201,2.1621,231.2,231.18,6.90459593]
[1734012596103,2.1619,231.22,231.18,6.90459593]
[1734012596303,2.1619,231.22,231.21,6.90459593]
[1734012596798,9.80459593,231.27,231.21,6.90459593]
[1734012597002,6.90459593,231.27,231.21,6.90459593]
[1734012597201,2.6534,231.29,231.21,6.90459593]
[1734012597403,2.1615,231.26,231.23,6.90459593]
[1734012597606,2.9,231.28,231.23,6.90459593]
[1734012597802,2.9,231.28,231.25,6.90459593]
[1734012598704,6.90459593,231.32,231.25,6.90459593]
[1734012598899,9.80459593,231.32,231.25,6.90459593]
[1734012599702,2.1614,231.28,231.25,6.90459593]
[1734012599906,6.90459593,231.3,231.23,6.90459593]
[1734012600104,2.1615,231.26,231.23,6.90459593]
[1734012601910,6.90459593,231.3,231.17,5.23791594]
[1734012602106,0.72443655,231.29,231.22,6.90459593]
[1734012602411,2.162,231.21,231.19,6.90459593]
[1734012602904,5.09525523,231.34,231.19,6.90459593]
[1734012602905,7.99525523,231.34,231.19,6.90459593]
[1734012603110,6.90459593,231.31,231.25,6.90459593]
[1734012603306,0.72438458,231.3,231.23,6.90459593]
[1734012603506,2.1617,231.24,231.23,6.90459593]
[1734012604005,2.1617,231.24,231.18,5.5088]
[1734012604216,2.1617,231.24,231.22,6.90459593]
[1734012604511,2.1618,231.23,231.22,6.90459593]
[1734012604706,6.90459593,231.27,231.2,6.90459593]
[1734012604908,6.90459593,231.25,231.18,2.6959]
[1734012605105,2.1621,231.2,231.18,9.60049593]
[1734012605308,2.1621,231.2,231.18,6.90459593]
[1734012605509,2.9,231.28,231.16,6.90459593]
[1734012605510,2.162,231.21,231.16,6.90459593]
[1734012605708,6.90459593,231.23,231.16,6.90459593]
[1734012606107,2.1623,231.17,231.16,6.90459593]
[1734012606914,2.1624,231.16,231.14,6.90459593]
[1734012607909,2.1625,231.15,231.14,6.90459593]
[1734012608412,2.1626,231.14,231.13,1.17714]
[1734012609508,2.1625,231.16,231.13,8.08173593]
[1734012610611,6.90459593,231.19,231.13,8.08173593]
[1734012612113,6.90459593,231.17,231.13,1.17714]
[1734012612320,2.1626,231.14,231.13,1.17714]
[1734012612918,2.1625,231.16,231.13,1.17714]
[1734012613118,2.1625,231.16,231.13,8.08173593]
[1734012613915,6.90459593,231.19,231.13,8.08173593]
[1734012613916,2.1625,231.15,231.13,8.08173593]
[1734012614829,2.1626,231.14,231.13,1.17714]
[1734012616525,5.23469831,231.22,231.13,1.17714]
[1734012616732,2.9,231.23,231.16,6.90459593]
[1734012616933,6.90459593,231.18,231.13,1.17714]
[1734012617132,2.1626,231.14,231.13,1.17714]
[1734012620726,6.90459593,231.14,231.07,6.90459593]
[1734012621434,6.90459593,231.14,231.0,2.9]
[1734012621634,6.90459593,231.14,231.08,6.90459593]
[1734012622034,2.1631,231.09,231.08,6.90459593]
[1734012622829,6.90459593,231.1,230.9,4.3297]
[1734012623131,6.90459593,231.1,231.01,2.1638]
[1734012623335,2.1633,231.08,231.05,6.90459593]
[1734012623533,6.90459593,231.12,231.05,6.90459593]
[1734012624630,2.1633,231.07,231.05,6.90459593]
[1734012625429,6.90459593,231.12,231.05,6.90459593]
[1734012626333,2.1633,231.08,231.05,6.90459593]
[1734012626535,6.90459593,231.12,231.05,6.90459593]
[1734012627036,2.1633,231.07,231.05,6.90459593]
[1734012628836,2.6686,231.21,231.05,6.90459593]
[1734012629037,6.90459593,231.18,231.11,6.90459593]
[1734012629431,2.1625,231.15,231.13,6.90459593]
[1734012629638,9.80459593,231.2,231.13,6.90459593]
[1734012630339,93.60330548,231.23,231.15,6.90459593]
[1734012630533,2.162,231.21,231.17,6.90459593]
[1734012631434,2.1617,231.24,231.19,6.90459593]
[1734012631633,2.1617,231.24,231.11,8.1979]
[1734012631634,2.9,231.29,231.23,6.90459593]
[1734012631835,0.72392491,231.28,231.23,6.90459593]
[1734012632031,2.1614,231.27,231.23,6.90459593]
[1734012632239,6.90459593,231.3,231.23,6.90459593]
[1734012632437,9.55769593,231.32,231.25,6.90459593]
[1734012632938,2.6531,231.32,231.25,6.90459593]
[1734012633239,2.6531,231.32,231.22,10.7702611]
[1734012633636,2.1612,231.29,231.22,12.9320611]
[1734012633838,2.1612,231.29,231.22,10.7702611]
[1734012634241,2.1611,231.31,231.24,2.1616]
[1734012634539,7.99525523,231.34,231.22,10.7702611]
[1734012634540,2.9,231.34,231.22,10.7702611]
[1734012634743,2.9,231.34,231.23,2.6271]
[1734012634939,2.9,231.35,231.25,2.1616]
[1734012635139,0.72452464,231.34,231.25,2.1616]
[1734012635835,2.1609,231.32,231.26,2.1614]
[1734012636238,10.7702611,231.39,231.25,10.7702611]
[1734012636440,0.72468009,231.38,231.25,10.7702611]
[1734012636742,16.07599188,231.39,231.25,10.7702611]
[1734012636946,5.30573078,231.39,231.28,10.7702611]
[1734012637145,2.9,231.4,231.28,10.7702611]
[1734012637841,7.99996219,231.41,231.09,5.99614147]
[1734012638043,10.7702611,231.3,231.19,2.1621]
[1734012638241,2.9,231.29,231.18,5.26681344]
[1734012638940,2.1615,231.26,231.2,2.162]
[1734012639141,2.1615,231.26,231.18,5.26681344]
[1734012639343,2.1616,231.25,231.19,2.1621]
[1734012639942,2.1616,231.25,231.2,2.162]
[1734012640842,2.1614,231.27,231.21,2.1619]
[1734012641042,2.9,231.28,231.18,16.03707454]
[1734012641848,10.7702611,231.27,231.13,5.5643]
[1734012642647,10.7702611,231.27,231.14,2.1626]
[1734012642846,10.7702611,231.27,231.14,5.19937528]
[1734012643144,2.162,231.21,231.16,2.1624]
[1734012643445,10.7702611,231.27,231.16,2.1624]
[1734012643851,2.9,231.28,231.18,10.7702611]
[1734012644050,2.9,231.3,231.18,10.7702611]
[1734012645147,2.1614,231.27,231.23,2.1617]
[1734012645346,2.9,231.3,231.21,10.7702611]
[1734012646251,2.88,231.34,231.21,10.7702611]
[1734012646650,2.88,231.34,231.24,10.7702611]
[1734012646849,2.88,231.34,231.25,2.8469]
[1734012647243,2.88,231.34,231.26,2.1614]
[1734012647244,2.1609,231.32,231.26,2.1614]
[1734012647441,2.1609,231.32,231.25,2.8469]
[1734012647844,2.161,231.31,231.25,2.8469]
[1734012648046,2.88,231.34,231.25,2.8469]
[1734012649353,2.1611,231.31,231.25,5.0085]
[1734012649545,2.88,231.34,231.25,2.8469]
[1734012650251,2.88,231.34,231.18,10.7702611]
[1734012650544,10.7702611,231.32,231.18,10.7702611]
[1734012651344,2.1616,231.25,231.2,2.162]
[1734012651543,10.7702611,231.32,231.18,10.7702611]
[1734012651544,2.88,231.28,231.18,10.7702611]
[1734012651955,2.1616,231.25,231.19,2.1621]
[1734012652248,2.1616,231.25,231.18,10.7702611]
[1734012652450,2.1616,231.25,231.15,5.5166]
[1734012652451,2.88,231.38,231.24,10.7702611]
[1734012652650,0.72420045,231.37,231.24,10.7702611]
[1734012652852,0.72420045,231.36,231.24,10.7702611]
[1734012653041,2.88,231.38,231.27,10.7702611]
[1734012653448,2.1606,231.36,231.3,2.1611]
[1734012653651,2.88,231.38,231.3,2.1611]
[1734012653846,13.5484611,231.42,231.3,2.1611]
[1734012654049,3.60431227,231.4,231.3,2.1611]
[1734012654246,2.88,231.4,231.3,2.1611]
[1734012654447,0.7243177,231.39,231.28,2.1612]
[1734012654642,0.7243177,231.39,231.27,10.7702611]
[1734012654843,0.7243177,231.39,231.27,12.9315611]
[1734012654844,2.1609,231.33,231.27,12.9315611]
[1734012655451,2.88,231.4,231.27,12.9315611]
[1734012655751,2.1606,231.36,231.27,12.9315611]
[1734012655948,2.88,231.4,231.27,12.9315611]
[1734012656153,0.72429076,231.39,231.27,12.9315611]
[1734012656854,10.7702611,231.39,231.25,2.828]
[1734012657044,10.7702611,231.36,231.21,10.7702611]
[1734012657245,10.7702611,231.33,231.2,2.839]
[1734012657546,2.88,231.32,231.2,2.839]
[1734012657751,2.88,231.32,231.18,10.7702611]
[1734012658049,10.7702611,231.3,231.18,10.7702611]
[1734012658348,2.1615,231.26,231.18,10.7702611]
[1734012658555,2.8779,231.31,231.18,10.7702611]
[1734012658749,2.8779,231.31,231.13,2.7031]
[1734012658750,10.7702611,231.3,231.13,2.7031]
[1734012659054,2.162,231.2,231.14,10.7702611]
[1734012659644,2.88,231.24,231.14,10.7702611]
[1734012660049,2.88,231.24,231.13,2.7031]
[1734012661151,2.1623,231.17,231.13,2.7031]
[1734012661350,2.88,231.24,231.13,2.7031]
[1734012661655,2.88,231.23,231.13,2.7031]
[1734012661852,2.88,231.23,231.15,2.1625]
[1734012661853,2.162,231.21,231.15,2.1625]
[1734012662148,2.88,231.25,231.17,10.7702611]
[1734012662355,2.1619,231.22,231.17,12.9325611]
[1734012662550,2.88,231.26,231.17,12.9325611]
[1734012662755,2.88,231.26,231.17,10.7702611]
[1734012663051,2.88,231.26,231.13,2.7031]
[1734012663747,2.1624,231.17,231.13,2.7031]
[1734012663948,2.8779,231.31,231.11,10.7702611]
[1734012663949,2.88,231.2,231.11,10.7702611]
[1734012664154,2.88,231.21,231.11,10.7702611]
[1734012664544,2.88,231.21,231.14,10.7702611]
[1734012665046,2.162,231.2,231.14,10.7702611]
[1734012665249,18.97091837,231.27,231.14,10.7702611]
[1734012665550,0.72372206,231.26,231.11,10.7702611]
[1734012665753,2.1618,231.23,231.11,12.9330611]
[1734012666054,18.97091837,231.27,231.11,10.7702611]
[1734012666255,0.72369839,231.26,231.11,10.7702611]
[1734012666847,10.7702611,231.24,231.11,10.7702611]
[1734012667052,8.20065727,231.27,231.14,10.7702611]
[1734012667248,2.88,231.3,231.2,10.7702611]
[1734012667652,2.1615,231.27,231.22,2.1618]
[1734012667952,2.1615,231.27,231.2,10.7702611]
[1734012667953,2.88,231.3,231.2,10.7702611]
[1734012668854,2.1616,231.25,231.17,10.7702611]
[1734012669049,2.88,231.3,231.2,10.7702611]
[1734012669450,2.1615,231.27,231.21,2.1619]
[1734012669949,2.1615,231.26,231.21,2.1619]
[1734012670156,7.94572194,231.31,231.21,2.1619]
[1734012670355,2.88,231.33,231.2,10.7702611]
[1734012670553,2.1612,231.29,231.2,10.7702611]
[1734012670751,2.88,231.32,231.23,10.7702611]
[1734012670954,2.88,231.32,231.23,12.9319611]
[1734012671256,2.1612,231.3,231.23,10.7702611]
[1734012672154,2.1612,231.29,231.24,2.1617]
[1734012672651,2.1611,231.31,231.27,2.1613]
[1734012672856,2.88,231.35,231.24,2.6601]
[1734012673554,7.99344084,231.36,231.24,2.6601]
[1734012673758,2.161,231.32,231.27,2.1614]
[1734012674051,7.99344084,231.36,231.24,2.6601]
[1734012674251,7.99344084,231.36,231.26,2.1615]
[1734012674252,2.1611,231.31,231.26,2.1615]
[1734012674456,2.1611,231.31,231.24,2.6601]
[1734012674457,2.88,231.34,231.24,2.6601]
[1734012675653,2.88,231.34,231.26,10.7702611]
[1734012676061,2.88,231.38,231.26,10.7702611]
[1734012676258,18.8445611,231.4,231.26,10.7702611]
[1734012676460,2.1606,231.36,231.27,2.1613]
[1734012676658,7.95948045,231.39,231.26,10.7702611]
[1734012677359,2.1607,231.35,231.29,2.1612]
[1734012677864,7.95948045,231.39,231.29,2.1612]
[1734012678462,7.95948045,231.39,231.3,2.1611]
[1734012678665,2.1606,231.36,231.3,2.1611]
[1734012678962,2.88,231.38,231.26,10.7702611]
[1734012679154,2.88,231.38,231.24,2.6601]
[1734012679155,2.6678,231.4,231.29,10.7702611]
[1734012679357,2.88,231.4,231.29,10.7702611]
[1734012679765,2.1605,231.38,231.32,2.1609]
[1734012680068,2.1605,231.38,231.29,10.7702611]
[1734012680863,2.1603,231.4,231.34,2.1607]
[1734012681060,2.88,231.41,231.32,10.7702611]
[1734012681263,5.4603,231.47,231.35,10.7702611]
[1734012681264,2.88,231.44,231.35,10.7702611]
[1734012681469,2.88,231.44,231.37,2.1604]
[1734012681470,2.16,231.42,231.37,2.1604]
[1734012681661,2.88,231.44,231.35,10.7702611]
[1734012681868,2.1599,231.43,231.39,2.1603]
[1734012682066,2.1599,231.43,231.36,2.6488]
[1734012682466,2.1599,231.43,231.38,2.1603]
[1734012682660,2.88,231.44,231.38,2.1603]
[1734012682861,2.88,231.44,231.36,2.6488]
[1734012683170,2.88,231.44,231.32,10.7702611]
[1734012684463,2.1604,231.39,231.32,10.7702611]
[1734012684860,2.1604,231.39,231.34,2.1607]
[1734012685272,2.1604,231.39,231.32,10.7702611]
[1734012685571,2.1604,231.39,231.34,2.1607]
[1734012686472,2.88,231.44,231.33,2.1608]
[1734012686473,2.1605,231.37,231.33,2.1608]
[1734012686866,2.1603,231.39,231.32,10.7702611]
[1734012687267,2.88,231.44,231.35,10.7702611]
[1734012687468,2.88,231.44,231.32,10.7702611]
[1734012687970,2.1602,231.4,231.32,10.7702611]
[1734012688866,2.1602,231.4,231.37,2.1604]
[1734012689766,2.1602,231.4,231.32,10.7702611]
[1734012690066,2.1602,231.4,231.36,2.1605]
[1734012690276,10.7702611,231.42,231.31,2.799]
[1734012690471,10.7702611,231.42,231.3,2.8853]
[1734012690669,10.7702611,231.42,231.29,2.1611]
[1734012691271,10.7702611,231.42,231.26,10.7702611]
[1734012691470,10.7702611,231.42,231.29,10.7702611]
[1734012692068,2.1604,231.38,231.29,10.7702611]
[1734012692673,2.1604,231.38,231.33,2.1607]
[1734012692875,2.1603,231.39,231.29,10.7702611]
[1734012693071,10.7702611,231.42,231.29,10.7702611]
[1734012694668,2.1606,231.36,231.32,2.1609]
[1734012694870,10.7702611,231.42,231.29,10.7702611]
[1734012694871,2.86,231.4,231.29,10.7702611]
[1734012695071,2.86,231.4,231.32,10.7702611]
[1734012695572,2.1604,231.39,231.32,10.7702611]
[1734012695876,2.86,231.4,231.32,10.7702611]
[1734012696769,2.86,231.4,231.37,2.1604]
[1734012697077,2.86,231.45,231.35,10.7702611]
[1734012698672,2.86,231.45,231.34,2.807]
[1734012698876,2.86,231.44,231.34,2.807]
[1734012700778,2.86,231.44,231.35,2.1606]
[1734012701474,2.1602,231.4,231.36,2.1605]
[1734012701674,2.86,231.44,231.34,2.807]
[1734012702574,2.16,231.42,231.37,2.1604]
[1734012702775,2.86,231.44,231.37,2.1604]
[1734012703176,2.16,231.42,231.37,2.1604]
[1734012703577,5.16910036,231.46,231.37,2.1604]
[1734012703772,2.86,231.45,231.37,2.1604]
[1734012703975,2.1602,231.4,231.35,2.1605]
[1734012704475,13.6302611,231.45,231.34,2.807]
[1734012704877,10.7702611,231.42,231.29,15.854299]
[1734012705680,10.7702611,231.42,231.26,10.7702611]
[1734012705980,2.86,231.45,231.26,10.7702611]
[1734012706179,2.1607,231.35,231.28,5.11256494]
[1734012706380,2.86,231.38,231.28,5.11256494]
[1734012706575,2.86,231.38,231.26,10.7702611]
[1734012707281,2.86,231.38,231.29,2.1611]
[1734012708575,2.86,231.38,231.3,2.1611]
[1734012709173,2.1607,231.35,231.3,2.1611]
[1734012709576,10.7702611,231.39,231.3,2.1611]
[1734012709877,2.86,231.38,231.3,2.1611]
[1734012710074,2.1606,231.36,231.3,2.1611]
[1734012710283,2.86,231.38,231.3,2.1611]
[1734012710879,2.86,231.38,231.26,15.8950414]
[1734012711083,2.86,231.38,231.29,10.7702611]
[1734012711484,5.0204,231.38,231.34,2.1607]
[1734012711978,5.0204,231.38,231.32,10.7702611]
[1734012711979,2.86,231.38,231.32,10.7702611]
[1734012712678,2.86,231.38,231.29,10.7702611]
[1734012712879,2.1605,231.37,231.33,2.1608]
[1734012713076,2.1605,231.37,231.29,10.7702611]
[1734012714187,2.1606,231.36,231.29,10.7702611]
[1734012714376,2.1606,231.36,231.32,2.1608]
[1734012714579,2.1606,231.36,231.29,10.7702611]
[1734012714878,2.86,231.38,231.29,10.7702611]
[1734012715085,10.7702611,231.48,231.35,10.7702611]
[1734012715285,2.1599,231.43,231.39,2.1602]
[1734012715586,2.86,231.47,231.35,10.7702611]
[1734012716583,2.1599,231.43,231.39,2.1602]
[1734012716780,2.64417856,231.47,231.35,10.7702611]
[1734012717188,2.1599,231.43,231.39,2.1602]
[1734012717679,2.1599,231.43,231.35,10.7702611]
[1734012717680,149.6214908,231.56,231.38,10.7702611]
[1734012717879,2.86,231.57,231.44,10.7702611]
[1734012718080,2.86,231.56,231.44,10.7702611]
[1734012718278,2.159,231.53,231.48,2.1594]
[1734012719182,2.1589,231.54,231.49,2.1593]
[1734012719583,2.86,231.56,231.44,10.7702611]
[1734012719883,2.159,231.53,231.44,10.7702611]
[1734012720186,2.159,231.53,231.48,2.1594]
[1734012720696,7.99368068,231.56,231.45,5.5649]
[1734012720697,2.1588,231.55,231.45,5.5649]
[1734012720993,2.86,231.57,231.47,10.7702611]
[1734012721193,10.7702611,231.64,231.5,10.7702611]
[1734012721392,0.72510062,231.63,231.54,2.1589]
[1734012721593,2.86,231.62,231.54,2.1589]
[1734012721891,5.10516312,231.61,231.54,2.1589]
[1734012722093,2.1582,231.61,231.55,2.1588]
[1734012722397,8.3674,231.65,231.53,10.7702611]
[1734012722398,2.86,231.62,231.53,10.7702611]
[1734012722698,2.1582,231.61,231.54,2.1588]
[1734012723088,2.7963,231.65,231.53,10.7702611]
[1734012723392,0.7251082,231.64,231.53,10.7702611]
[1734012723593,10.7702611,231.67,231.53,10.7702611]
[1734012723791,2.1582,231.62,231.57,2.1586]
[1734012723992,2.1582,231.62,231.53,10.7702611]
[1734012724185,8.11193022,231.67,231.56,10.7702611]
[1734012724390,2.86,231.67,231.56,10.7702611]
[1734012724589,2.1579,231.65,231.6,2.1583]
[1734012725186,2.1579,231.65,231.58,2.1584]
[1734012725390,10.7702611,231.67,231.54,10.7702611]
[1734012725589,10.7702611,231.73,231.57,10.7702611]
[1734012725785,3.58511552,231.72,231.58,5.6051]
[1734012725992,2.1577,231.68,231.63,2.158]
[1734012727292,8.3648,231.78,231.63,10.7702611]
[1734012727293,10.7702611,231.76,231.63,10.7702611]
[1734012727502,0.72516898,231.75,231.63,10.7702611]
[1734012727899,2.1572,231.72,231.66,2.1577]
[1734012728898,2.1572,231.72,231.63,10.7702611]
[1734012728899,15.8250579,231.76,231.65,2.1578]
[1734012729095,15.8250579,231.76,231.63,10.7702611]